[Event "Titled Tuesday Blitz June 13 Early 2023"]
[White "Tokman, Ariel"]
[Black "De La Villa Garcia, Jesus Maria"]
[WhiteFideId "117420"]
[BlackFideId "2200040"]
[WhiteElo "2263"]
[BlackElo "2382"]
[Result "0-1"]
[Round "6"]
[TimeControl "180+2"]
[Date "2023.06.13"]
[WhiteClock "0:00:00"]
[BlackClock "0:00:07"]
[Board "139"]

1. e4 {[%clk 0:02:59]}  c6 {[%clk 0:03:00]} 2. Nc3 {[%clk 0:02:58]}  d5 {[%clk 0:03:00]} 3. Nf3 {[%clk 0:02:59]}  dxe4 {[%clk 0:03:00]} 4. Nxe4 {[%clk 0:02:59]}  Nf6 {[%clk 0:03:01]} 5. Nxf6+ {[%clk 0:02:53]}  exf6 {[%clk 0:03:00]} 6. d3 {[%clk 0:02:52]}  Bd6 {[%clk 0:03:01]} 7. Be2 {[%clk 0:02:51]}  O-O {[%clk 0:03:01]} 8. O-O {[%clk 0:02:51]}  Re8 {[%clk 0:03:02]} 9. Nd2 {[%clk 0:02:50]}  Nd7 {[%clk 0:03:01]} 10. Nc4 {[%clk 0:02:50]}  Bc7 {[%clk 0:03:02]} 11. Be3 {[%clk 0:02:49]}  Nf8 {[%clk 0:03:02]} 12. Qd2 {[%clk 0:02:48]}  Be6 {[%clk 0:03:02]} 13. Rfe1 {[%clk 0:02:41]}  Ng6 {[%clk 0:02:59]} 14. a4 {[%clk 0:02:29]}  Qd7 {[%clk 0:02:50]} 15. Bf1 {[%clk 0:02:20]}  Rad8 {[%clk 0:02:47]} 16. Qb4 {[%clk 0:02:15]}  Bb8 {[%clk 0:02:45]} 17. a5 {[%clk 0:02:07]}  h5 {[%clk 0:02:39]} 18. g3 {[%clk 0:01:54]}  h4 {[%clk 0:02:38]} 19. Qc5 {[%clk 0:01:49]}  Bd5 {[%clk 0:02:34]} 20. Bd2 {[%clk 0:00:48]}  hxg3 {[%clk 0:02:25]} 21. fxg3 {[%clk 0:00:48]}  Ne5 {[%clk 0:01:41]} 22. Nxe5 {[%clk 0:00:45]}  Bxe5 {[%clk 0:01:41]} 23. Bc3 {[%clk 0:00:38]}  Bd6 {[%clk 0:01:31]} 24. Qf2 {[%clk 0:00:33]}  a6 {[%clk 0:01:21]} 25. Rxe8+ {[%clk 0:00:31]}  Rxe8 {[%clk 0:01:20]} 26. Re1 {[%clk 0:00:32]}  Rxe1 {[%clk 0:01:20]} 27. Qxe1 {[%clk 0:00:31]}  Bc5+ {[%clk 0:01:19]} 28. d4 {[%clk 0:00:28]}  Bd6 {[%clk 0:01:18]} 29. Bg2 {[%clk 0:00:23]}  Be6 {[%clk 0:00:48]} 30. Qe2 {[%clk 0:00:23]}  Qe7 {[%clk 0:00:43]} 31. Bd2 {[%clk 0:00:21]}  Bb4 {[%clk 0:00:41]} 32. Qe1 {[%clk 0:00:18]}  Bd6 {[%clk 0:00:37]} 33. c3 {[%clk 0:00:18]}  c5 {[%clk 0:00:36]} 34. Be3 {[%clk 0:00:12]}  Qc7 {[%clk 0:00:36]} 35. dxc5 {[%clk 0:00:08]}  Bxc5 {[%clk 0:00:36]} 36. b4 {[%clk 0:00:09]}  Bd6 {[%clk 0:00:33]} 37. Bd4 {[%clk 0:00:07]}  Qc4 {[%clk 0:00:26]} 38. Qe4 {[%clk 0:00:06]}  Qb3 {[%clk 0:00:12]} 39. Bf3 {[%clk 0:00:04]}  Qb2 {[%clk 0:00:08]} 40. Qe2 {[%clk 0:00:00]}  Qa1+ {[%clk 0:00:07]} 0-1


[Site "https://www.chess.com"]

[Event "Titled Tuesday Blitz June 13 Early 2023"]
[White "Goswami, Vedant"]
[Black "Gomes, Luiz Alexandre de Souza"]
[WhiteFideId "5003725"]
[BlackFideId "2102790"]
[WhiteElo "2011"]
[BlackElo "2504"]
[Result "0-1"]
[Round "6"]
[TimeControl "180+2"]
[Date "2023.06.13"]
[WhiteClock "0:00:00"]
[BlackClock "0:00:19"]
[Board "141"]

1. c4 {[%clk 0:02:54]}  e6 {[%clk 0:02:59]} 2. Nc3 {[%clk 0:02:53]}  d5 {[%clk 0:03:00]} 3. d4 {[%clk 0:02:52]}  Nf6 {[%clk 0:02:56]} 4. g3 {[%clk 0:02:49]}  Be7 {[%clk 0:02:56]} 5. Bg2 {[%clk 0:02:49]}  c6 {[%clk 0:02:56]} 6. Nf3 {[%clk 0:02:49]}  Nbd7 {[%clk 0:02:56]} 7. O-O {[%clk 0:02:48]}  dxc4 {[%clk 0:02:56]} 8. e4 {[%clk 0:02:46]}  O-O {[%clk 0:02:55]} 9. Qe2 {[%clk 0:02:44]}  Nb6 {[%clk 0:02:55]} 10. Bf4 {[%clk 0:02:41]}  Bd7 {[%clk 0:02:43]} 11. Ne5 {[%clk 0:02:38]}  Be8 {[%clk 0:02:42]} 12. Rfd1 {[%clk 0:02:37]}  h6 {[%clk 0:02:30]} 13. Rac1 {[%clk 0:02:34]}  Bd6 {[%clk 0:02:13]} 14. Be3 {[%clk 0:02:17]}  Qc7 {[%clk 0:02:08]} 15. f4 {[%clk 0:02:17]}  Rd8 {[%clk 0:02:06]} 16. g4 {[%clk 0:02:10]}  Be7 {[%clk 0:02:03]} 17. h4 {[%clk 0:02:08]}  Nfd7 {[%clk 0:02:01]} 18. g5 {[%clk 0:02:02]}  Nxe5 {[%clk 0:01:59]} 19. dxe5 {[%clk 0:02:01]}  hxg5 {[%clk 0:02:00]} 20. hxg5 {[%clk 0:02:01]}  Bd7 {[%clk 0:01:48]} 21. Qh5 {[%clk 0:01:57]}  g6 {[%clk 0:01:43]} 22. Qh6 {[%clk 0:01:57]}  Rfe8 {[%clk 0:01:43]} 23. Kf2 {[%clk 0:01:52]}  Bf8 {[%clk 0:01:44]} 24. Qh4 {[%clk 0:01:52]}  Bg7 {[%clk 0:01:44]} 25. Rh1 {[%clk 0:01:51]}  Nc8 {[%clk 0:01:29]} 26. Qh7+ {[%clk 0:01:49]}  Kf8 {[%clk 0:01:29]} 27. Bc5+ {[%clk 0:01:46]}  Ne7 {[%clk 0:01:29]} 28. Rh4 {[%clk 0:01:27]}  Qa5 {[%clk 0:01:23]} 29. Bd6 {[%clk 0:01:22]}  Qb6+ {[%clk 0:01:21]} 30. Kg3 {[%clk 0:01:09]}  Qe3+ {[%clk 0:01:20]} 31. Bf3 {[%clk 0:01:05]}  Qxc1 {[%clk 0:01:20]} 32. Ne2 {[%clk 0:00:46]}  Qe1+ {[%clk 0:01:16]} 33. Kg2 {[%clk 0:00:43]}  Bc8 {[%clk 0:01:16]} 34. Ng3 {[%clk 0:00:42]}  Rxd6 {[%clk 0:01:13]} 35. exd6 {[%clk 0:00:42]}  Qd2+ {[%clk 0:01:13]} 36. Kh3 {[%clk 0:00:37]}  Qxd6 {[%clk 0:01:14]} 37. e5 {[%clk 0:00:36]}  Qd3 {[%clk 0:01:13]} 38. Kg4 {[%clk 0:00:34]}  Nf5 {[%clk 0:01:10]} 39. Ne4 {[%clk 0:00:30]}  Qf1 {[%clk 0:00:49]} 40. Rh2 {[%clk 0:00:19]}  Rd8 {[%clk 0:00:42]} 41. Nf6 {[%clk 0:00:17]}  Ne3+ {[%clk 0:00:36]} 42. Kg3 {[%clk 0:00:16]}  Qe1+ {[%clk 0:00:34]} 43. Rf2 {[%clk 0:00:14]}  Qg1+ {[%clk 0:00:21]} 44. Bg2 {[%clk 0:00:14]}  Nf5+ {[%clk 0:00:20]} 45. Kf3 {[%clk 0:00:07]}  Rd3+ {[%clk 0:00:20]} 46. Ke4 {[%clk 0:00:00]}  Qe1+ {[%clk 0:00:19]} 0-1


[Site "https://www.chess.com"]

[Event "Titled Tuesday Blitz June 13 Early 2023"]
[White "Mayaud, Raphael"]
[Black "Petukhov, Dmitry"]
[WhiteFideId "627151"]
[BlackFideId "4142748"]
[WhiteElo "2191"]
[BlackElo "2311"]
[Result "1/2-1/2"]
[Round "6"]
[TimeControl "180+2"]
[Date "2023.06.13"]
[WhiteClock "0:00:26"]
[BlackClock "0:00:25"]
[Board "146"]

1. d4 {[%clk 0:02:32]}  Nf6 {[%clk 0:02:59]} 2. Bg5 {[%clk 0:02:31]}  Ne4 {[%clk 0:02:58]} 3. Bf4 {[%clk 0:02:31]}  d5 {[%clk 0:02:58]} 4. e3 {[%clk 0:02:30]}  Bf5 {[%clk 0:02:57]} 5. Bd3 {[%clk 0:02:30]}  e6 {[%clk 0:02:53]} 6. f3 {[%clk 0:02:27]}  Nd6 {[%clk 0:02:52]} 7. Bxd6 {[%clk 0:02:27]}  Bxd6 {[%clk 0:02:50]} 8. Ne2 {[%clk 0:02:20]}  Qh4+ {[%clk 0:02:43]} 9. g3 {[%clk 0:02:17]}  Qh3 {[%clk 0:02:43]} 10. Kf2 {[%clk 0:01:50]}  Nd7 {[%clk 0:02:42]} 11. Nbc3 {[%clk 0:01:42]}  Nf6 {[%clk 0:02:41]} 12. Qf1 {[%clk 0:01:40]}  Qh6 {[%clk 0:02:35]} 13. h4 {[%clk 0:01:34]}  c5 {[%clk 0:02:31]} 14. Bxf5 {[%clk 0:01:33]}  exf5 {[%clk 0:02:31]} 15. Nf4 {[%clk 0:01:25]}  cxd4 {[%clk 0:02:27]} 16. Qb5+ {[%clk 0:01:20]}  Nd7 {[%clk 0:02:27]} 17. exd4 {[%clk 0:01:11]}  Bxf4 {[%clk 0:02:06]} 18. Rae1+ {[%clk 0:00:59]}  Kd8 {[%clk 0:01:59]} 19. gxf4 {[%clk 0:00:59]}  Qxf4 {[%clk 0:01:59]} 20. Qxd5 {[%clk 0:00:50]}  Kc8 {[%clk 0:01:47]} 21. Re7 {[%clk 0:00:48]}  Rd8 {[%clk 0:01:40]} 22. Qxf7 {[%clk 0:00:39]}  Nf6 {[%clk 0:01:09]} 23. Nb5 {[%clk 0:00:29]}  Nd5 {[%clk 0:00:37]} 24. Re8 {[%clk 0:00:29]}  Qd2+ {[%clk 0:00:33]} 25. Kg3 {[%clk 0:00:27]}  Qf4+ {[%clk 0:00:32]} 26. Kf2 {[%clk 0:00:27]}  Qd2+ {[%clk 0:00:26]} 27. Kg3 {[%clk 0:00:27]}  Qf4+ {[%clk 0:00:25]} 28. Kf2 {[%clk 0:00:26]} 1/2-1/2


[Site "https://www.chess.com"]

[Event "Titled Tuesday Blitz June 13 Early 2023"]
[White "Sovetbekova, Nurai"]
[Black "Ronka, Erik"]
[WhiteFideId "13801910"]
[BlackFideId "505080"]
[WhiteElo "1857"]
[BlackElo "2264"]
[Result "0-1"]
[Round "6"]
[TimeControl "180+2"]
[Date "2023.06.13"]
[WhiteClock "0:00:00"]
[BlackClock "0:00:33"]
[Board "148"]

1. d4 {[%clk 0:03:00]}  Nf6 {[%clk 0:02:55]} 2. c4 {[%clk 0:03:01]}  e6 {[%clk 0:02:54]} 3. Nc3 {[%clk 0:03:00]}  Bb4 {[%clk 0:02:53]} 4. e3 {[%clk 0:02:56]}  O-O {[%clk 0:02:53]} 5. Bd2 {[%clk 0:02:56]}  d5 {[%clk 0:02:52]} 6. Nf3 {[%clk 0:02:55]}  b6 {[%clk 0:02:52]} 7. cxd5 {[%clk 0:02:55]}  exd5 {[%clk 0:02:51]} 8. Bd3 {[%clk 0:02:55]}  a6 {[%clk 0:02:51]} 9. O-O {[%clk 0:02:51]}  Bb7 {[%clk 0:02:51]} 10. Ne5 {[%clk 0:02:51]}  Nbd7 {[%clk 0:02:48]} 11. f4 {[%clk 0:02:51]}  Bxc3 {[%clk 0:02:45]} 12. Bxc3 {[%clk 0:02:49]}  Ne4 {[%clk 0:02:46]} 13. Be1 {[%clk 0:02:43]}  f6 {[%clk 0:02:42]} 14. Nxd7 {[%clk 0:02:37]}  Qxd7 {[%clk 0:02:43]} 15. Bxe4 {[%clk 0:02:30]}  dxe4 {[%clk 0:02:43]} 16. Rc1 {[%clk 0:02:30]}  Bd5 {[%clk 0:02:42]} 17. a3 {[%clk 0:02:24]}  a5 {[%clk 0:02:38]} 18. Qc2 {[%clk 0:02:19]}  c6 {[%clk 0:02:33]} 19. b4 {[%clk 0:02:16]}  axb4 {[%clk 0:02:32]} 20. Bxb4 {[%clk 0:02:15]}  Rfc8 {[%clk 0:02:30]} 21. Qb2 {[%clk 0:02:08]}  h6 {[%clk 0:02:21]} 22. Rc2 {[%clk 0:02:02]}  b5 {[%clk 0:02:13]} 23. Rc5 {[%clk 0:01:55]}  Kh7 {[%clk 0:02:08]} 24. Qc2 {[%clk 0:01:45]}  Re8 {[%clk 0:01:45]} 25. Ra1 {[%clk 0:01:36]}  Bc4 {[%clk 0:01:43]} 26. a4 {[%clk 0:01:30]}  Bd3 {[%clk 0:01:42]} 27. Qd1 {[%clk 0:01:25]}  bxa4 {[%clk 0:01:38]} 28. Rxa4 {[%clk 0:01:24]}  Qb7 {[%clk 0:01:32]} 29. Ba5 {[%clk 0:00:34]}  Reb8 {[%clk 0:01:18]} 30. Kf2 {[%clk 0:00:24]}  Qb2+ {[%clk 0:01:17]} 31. Kg3 {[%clk 0:00:24]}  Qb7 {[%clk 0:00:55]} 32. Rc3 {[%clk 0:00:16]}  Qf7 {[%clk 0:00:51]} 33. Qa1 {[%clk 0:00:09]}  Qg6+ {[%clk 0:00:50]} 34. Kf2 {[%clk 0:00:09]}  Rb1 {[%clk 0:00:46]} 35. Qa2 {[%clk 0:00:08]}  Rab8 {[%clk 0:00:46]} 36. Bb4 {[%clk 0:00:03]}  R1xb4 {[%clk 0:00:44]} 37. Rxb4 {[%clk 0:00:04]}  Rxb4 {[%clk 0:00:44]} 38. Rxc6 {[%clk 0:00:04]}  Qg4 {[%clk 0:00:36]} 39. h3 {[%clk 0:00:03]}  Qh4+ {[%clk 0:00:35]} 40. Kg1 {[%clk 0:00:03]}  Qg3 {[%clk 0:00:34]} 41. Rc1 {[%clk 0:00:00]}  Qxe3+ {[%clk 0:00:33]} 0-1


[Site "https://www.chess.com"]

[Event "Titled Tuesday Blitz June 13 Early 2023"]
[White "Mrithyunjay Mahadevan"]
[Black "Gonzalez Vega, Alejandro"]
[WhiteFideId "45003521"]
[BlackFideId "3510042"]
[WhiteElo "1626"]
[BlackElo "2315"]
[Result "1-0"]
[Round "6"]
[TimeControl "180+2"]
[Date "2023.06.13"]
[WhiteClock "0:00:23"]
[BlackClock "0:00:28"]
[Board "149"]

1. e4 {[%clk 0:03:00]}  c5 {[%clk 0:02:56]} 2. Nf3 {[%clk 0:03:00]}  a6 {[%clk 0:02:55]} 3. c3 {[%clk 0:02:57]}  Nf6 {[%clk 0:02:52]} 4. e5 {[%clk 0:02:57]}  Nd5 {[%clk 0:02:53]} 5. d4 {[%clk 0:02:57]}  cxd4 {[%clk 0:02:53]} 6. Bc4 {[%clk 0:02:55]}  Nb6 {[%clk 0:02:51]} 7. Bb3 {[%clk 0:02:55]}  d5 {[%clk 0:02:51]} 8. cxd4 {[%clk 0:02:46]}  Bg4 {[%clk 0:02:48]} 9. O-O {[%clk 0:02:47]}  e6 {[%clk 0:02:48]} 10. Be3 {[%clk 0:02:43]}  Be7 {[%clk 0:02:46]} 11. Nbd2 {[%clk 0:02:43]}  Nc6 {[%clk 0:02:45]} 12. h3 {[%clk 0:02:43]}  Bh5 {[%clk 0:02:45]} 13. a3 {[%clk 0:02:37]}  Rc8 {[%clk 0:02:43]} 14. Rc1 {[%clk 0:02:36]}  O-O {[%clk 0:02:25]} 15. Qe1 {[%clk 0:02:30]}  Bg6 {[%clk 0:02:23]} 16. Qe2 {[%clk 0:02:27]}  Na5 {[%clk 0:02:21]} 17. Ba2 {[%clk 0:02:25]}  Qd7 {[%clk 0:02:18]} 18. g4 {[%clk 0:02:19]}  Rxc1 {[%clk 0:02:14]} 19. Rxc1 {[%clk 0:02:18]}  Rc8 {[%clk 0:02:14]} 20. Qd1 {[%clk 0:02:11]}  Rc7 {[%clk 0:02:05]} 21. h4 {[%clk 0:02:09]}  h5 {[%clk 0:02:03]} 22. g5 {[%clk 0:02:07]}  Qc8 {[%clk 0:02:01]} 23. Rxc7 {[%clk 0:02:06]}  Qxc7 {[%clk 0:02:01]} 24. Ne1 {[%clk 0:02:03]}  Nac4 {[%clk 0:01:53]} 25. Qc1 {[%clk 0:02:00]}  Qc6 {[%clk 0:01:50]} 26. Nxc4 {[%clk 0:01:53]}  Nxc4 {[%clk 0:01:47]} 27. Ng2 {[%clk 0:01:53]}  Be4 {[%clk 0:01:38]} 28. Nf4 {[%clk 0:01:50]}  g6 {[%clk 0:01:38]} 29. Qc3 {[%clk 0:01:42]}  Qb5 {[%clk 0:01:33]} 30. Bxc4 {[%clk 0:01:24]}  Qxc4 {[%clk 0:01:29]} 31. Qxc4 {[%clk 0:01:23]}  dxc4 {[%clk 0:01:30]} 32. Ne2 {[%clk 0:01:21]}  b5 {[%clk 0:01:28]} 33. Kf1 {[%clk 0:01:20]}  b4 {[%clk 0:01:25]} 34. axb4 {[%clk 0:01:19]}  Bxb4 {[%clk 0:01:26]} 35. Nc3 {[%clk 0:01:19]}  Bd3+ {[%clk 0:01:25]} 36. Ke1 {[%clk 0:01:19]}  a5 {[%clk 0:01:16]} 37. Kd1 {[%clk 0:01:17]}  a4 {[%clk 0:01:15]} 38. Nxa4 {[%clk 0:01:15]}  Kf8 {[%clk 0:01:11]} 39. Bd2 {[%clk 0:01:13]}  Be7 {[%clk 0:01:08]} 40. Bc3 {[%clk 0:01:11]}  Be4 {[%clk 0:01:04]} 41. Nb6 {[%clk 0:01:10]}  Bd3 {[%clk 0:01:02]} 42. Kd2 {[%clk 0:01:08]}  Bf1 {[%clk 0:01:02]} 43. Ke1 {[%clk 0:01:05]}  Bd3 {[%clk 0:01:01]} 44. Kd2 {[%clk 0:00:58]}  Bf1 {[%clk 0:01:00]} 45. Ba5 {[%clk 0:00:57]}  Ke8 {[%clk 0:00:57]} 46. Kc3 {[%clk 0:00:52]}  Bd8 {[%clk 0:00:57]} 47. Nxc4 {[%clk 0:00:50]}  Bxc4 {[%clk 0:00:54]} 48. Bxd8 {[%clk 0:00:49]}  Bd5 {[%clk 0:00:53]} 49. Ba5 {[%clk 0:00:47]}  Kd7 {[%clk 0:00:53]} 50. Kb4 {[%clk 0:00:47]}  Kc6 {[%clk 0:00:54]} 51. Bd8 {[%clk 0:00:47]}  Be4 {[%clk 0:00:52]} 52. Ka5 {[%clk 0:00:43]}  Bd3 {[%clk 0:00:51]} 53. b4 {[%clk 0:00:43]}  Kd5 {[%clk 0:00:49]} 54. b5 {[%clk 0:00:39]}  Kxd4 {[%clk 0:00:46]} 55. b6 {[%clk 0:00:38]}  Be4 {[%clk 0:00:45]} 56. Bc7 {[%clk 0:00:36]}  Bb7 {[%clk 0:00:44]} 57. Kb5 {[%clk 0:00:36]}  Ke4 {[%clk 0:00:43]} 58. Kc5 {[%clk 0:00:35]}  Kf3 {[%clk 0:00:39]} 59. Kd6 {[%clk 0:00:33]}  Kxf2 {[%clk 0:00:39]} 60. Ke7 {[%clk 0:00:29]}  Kg3 {[%clk 0:00:40]} 61. Kxf7 {[%clk 0:00:29]}  Kxh4 {[%clk 0:00:40]} 62. Kxg6 {[%clk 0:00:21]}  Kg4 {[%clk 0:00:39]} 63. Kf6 {[%clk 0:00:21]}  h4 {[%clk 0:00:39]} 64. g6 {[%clk 0:00:21]}  h3 {[%clk 0:00:35]} 65. g7 {[%clk 0:00:22]}  h2 {[%clk 0:00:34]} 66. g8=Q+ {[%clk 0:00:22]}  Kf4 {[%clk 0:00:33]} 67. Qg5+ {[%clk 0:00:20]}  Kf3 {[%clk 0:00:32]} 68. Qh5+ {[%clk 0:00:20]}  Kg2 {[%clk 0:00:32]} 69. Kxe6 {[%clk 0:00:20]}  h1=Q {[%clk 0:00:30]} 70. Qxh1+ {[%clk 0:00:21]}  Kxh1 {[%clk 0:00:30]} 71. Kd7 {[%clk 0:00:22]}  Kg2 {[%clk 0:00:29]} 72. e6 {[%clk 0:00:22]}  Kf3 {[%clk 0:00:28]} 73. e7 {[%clk 0:00:23]}  Bc6+ {[%clk 0:00:28]} 74. Kxc6 {[%clk 0:00:23]} 1-0


[Site "https://www.chess.com"]

[Event "Titled Tuesday Blitz June 13 Early 2023"]
[White "Hristodoulou, Panagiotis"]
[Black "Jiganchine, Roman"]
[WhiteFideId "4214340"]
[BlackFideId "2603667"]
[WhiteElo "2272"]
[BlackElo "2314"]
[Result "1-0"]
[Round "6"]
[TimeControl "180+2"]
[Date "2023.06.13"]
[WhiteClock "0:00:13"]
[BlackClock "0:00:05"]
[Board "150"]

1. e4 {[%clk 0:02:57]}  c6 {[%clk 0:02:59]} 2. d4 {[%clk 0:02:57]}  d5 {[%clk 0:02:55]} 3. e5 {[%clk 0:02:55]}  Bf5 {[%clk 0:02:54]} 4. Nf3 {[%clk 0:02:55]}  e6 {[%clk 0:02:54]} 5. Be2 {[%clk 0:02:55]}  Nd7 {[%clk 0:02:52]} 6. O-O {[%clk 0:02:55]}  h6 {[%clk 0:02:50]} 7. Re1 {[%clk 0:02:35]}  a6 {[%clk 0:02:49]} 8. Nbd2 {[%clk 0:02:35]}  Rc8 {[%clk 0:02:47]} 9. c4 {[%clk 0:02:31]}  Ne7 {[%clk 0:02:33]} 10. b3 {[%clk 0:02:30]}  Bh7 {[%clk 0:02:28]} 11. Bb2 {[%clk 0:02:28]}  Nf5 {[%clk 0:02:25]} 12. Bd3 {[%clk 0:02:16]}  Be7 {[%clk 0:02:22]} 13. Qc2 {[%clk 0:02:16]}  g6 {[%clk 0:01:55]} 14. Rac1 {[%clk 0:02:03]}  O-O {[%clk 0:01:51]} 15. Bxf5 {[%clk 0:01:53]}  exf5 {[%clk 0:01:48]} 16. e6 {[%clk 0:01:37]}  Nf6 {[%clk 0:01:33]} 17. exf7+ {[%clk 0:01:33]}  Rxf7 {[%clk 0:01:32]} 18. Ne5 {[%clk 0:01:34]}  Rf8 {[%clk 0:01:21]} 19. Qd3 {[%clk 0:01:27]}  Ne4 {[%clk 0:01:16]} 20. f3 {[%clk 0:01:20]}  Nf6 {[%clk 0:00:58]} 21. Re2 {[%clk 0:01:12]}  g5 {[%clk 0:00:55]} 22. Rce1 {[%clk 0:01:11]}  f4 {[%clk 0:00:50]} 23. Qc3 {[%clk 0:01:11]}  Bd6 {[%clk 0:00:46]} 24. a4 {[%clk 0:00:48]}  a5 {[%clk 0:00:45]} 25. c5 {[%clk 0:00:48]}  Bc7 {[%clk 0:00:45]} 26. Nf1 {[%clk 0:00:46]}  Qe8 {[%clk 0:00:42]} 27. h3 {[%clk 0:00:46]}  Qh5 {[%clk 0:00:38]} 28. Nh2 {[%clk 0:00:38]}  Qh4 {[%clk 0:00:36]} 29. Nhg4 {[%clk 0:00:27]}  Nxg4 {[%clk 0:00:33]} 30. Nxg4 {[%clk 0:00:28]}  h5 {[%clk 0:00:32]} 31. Nh6+ {[%clk 0:00:28]}  Kg7 {[%clk 0:00:31]} 32. Re7+ {[%clk 0:00:28]}  Kxh6 {[%clk 0:00:30]} 33. R1e6+ {[%clk 0:00:28]}  Bg6 {[%clk 0:00:29]} 34. Qd3 {[%clk 0:00:28]}  Rg8 {[%clk 0:00:28]} 35. Bc1 {[%clk 0:00:22]}  g4 {[%clk 0:00:24]} 36. Rxc7 {[%clk 0:00:20]}  gxf3 {[%clk 0:00:18]} 37. Rxc8 {[%clk 0:00:17]}  Qe1+ {[%clk 0:00:14]} 38. Rxe1 {[%clk 0:00:16]}  Bxd3 {[%clk 0:00:13]} 39. Rxg8 {[%clk 0:00:15]}  fxg2 {[%clk 0:00:05]} 40. Re7 {[%clk 0:00:13]} 1-0


[Site "https://www.chess.com"]

[Event "Titled Tuesday Blitz June 13 Early 2023"]
[White "Zaksaite, Salomeja"]
[Black "Baches Garcia, Guillermo"]
[WhiteFideId "12801496"]
[BlackFideId "2209764"]
[WhiteElo "2059"]
[BlackElo "2466"]
[Result "0-1"]
[Round "6"]
[TimeControl "180+2"]
[Date "2023.06.13"]
[WhiteClock "0:00:00"]
[BlackClock "0:00:15"]
[Board "151"]

1. d4 {[%clk 0:02:56]}  d5 {[%clk 0:03:00]} 2. e3 {[%clk 0:02:55]}  c5 {[%clk 0:02:58]} 3. dxc5 {[%clk 0:02:52]}  e6 {[%clk 0:02:57]} 4. Nf3 {[%clk 0:02:45]}  Bxc5 {[%clk 0:02:56]} 5. c4 {[%clk 0:02:41]}  Nf6 {[%clk 0:02:54]} 6. Nc3 {[%clk 0:02:34]}  O-O {[%clk 0:02:48]} 7. cxd5 {[%clk 0:02:33]}  exd5 {[%clk 0:02:47]} 8. Be2 {[%clk 0:02:24]}  Nc6 {[%clk 0:02:47]} 9. O-O {[%clk 0:02:20]}  a6 {[%clk 0:02:43]} 10. a3 {[%clk 0:02:20]}  Qd6 {[%clk 0:02:37]} 11. Nd4 {[%clk 0:02:10]}  Bb6 {[%clk 0:02:23]} 12. g3 {[%clk 0:01:18]}  Bh3 {[%clk 0:02:18]} 13. Re1 {[%clk 0:01:18]}  Rad8 {[%clk 0:02:18]} 14. Bf3 {[%clk 0:01:18]}  Rfe8 {[%clk 0:02:14]} 15. Nxc6 {[%clk 0:01:05]}  bxc6 {[%clk 0:02:10]} 16. b4 {[%clk 0:01:05]}  d4 {[%clk 0:01:59]} 17. exd4 {[%clk 0:01:02]}  Rxe1+ {[%clk 0:01:55]} 18. Qxe1 {[%clk 0:01:02]}  Bxd4 {[%clk 0:01:54]} 19. Bf4 {[%clk 0:01:00]}  Qe6 {[%clk 0:01:37]} 20. Qxe6 {[%clk 0:00:50]}  fxe6 {[%clk 0:01:37]} 21. Rc1 {[%clk 0:00:49]}  e5 {[%clk 0:01:34]} 22. Bg5 {[%clk 0:00:42]}  c5 {[%clk 0:01:20]} 23. bxc5 {[%clk 0:00:34]}  Bxc5 {[%clk 0:01:13]} 24. Nd5 {[%clk 0:00:28]}  Bxa3 {[%clk 0:01:09]} 25. Ra1 {[%clk 0:00:16]}  Bb2 {[%clk 0:01:05]} 26. Rb1 {[%clk 0:00:14]}  Bd4 {[%clk 0:00:55]} 27. Nxf6+ {[%clk 0:00:10]}  gxf6 {[%clk 0:00:54]} 28. Bxf6 {[%clk 0:00:11]}  Rc8 {[%clk 0:00:48]} 29. Bd5+ {[%clk 0:00:08]}  Kf8 {[%clk 0:00:47]} 30. Re1 {[%clk 0:00:05]}  Rc2 {[%clk 0:00:40]} 31. Kh1 {[%clk 0:00:02]}  Bxf2 {[%clk 0:00:29]} 32. Rb1 {[%clk 0:00:02]}  Bd4 {[%clk 0:00:24]} 33. Be4 {[%clk 0:00:02]}  Rc7 {[%clk 0:00:18]} 34. Bd5 {[%clk 0:00:00]}  Rc2 {[%clk 0:00:15]} 0-1


[Site "https://www.chess.com"]